[Event "19th IPCA WCC 2019"]
[Site "Ruzomberok"]
[Date "2019.06.29"]
[Round "2.16"]
[White "Belak, Stefan"]
[Black "Frumin, Rebeka"]
[Result "1-0"]
[ECO "A48"]
[WhiteElo "1851"]
[BlackElo "1398"]
[Annotator "NA"]
[PlyCount "93"]
[EventDate "2019.06.28"]
[EventType "swiss"]
[EventCountry "SVK"]
[SourceTitle "playchess.com"]
[Source "ChessBase"]
[SourceQuality "1"]
[TimeControl "5400+30"]

1. d4 {[%emt 0:00:00]} Nf6 {[%emt 0:00:29]} 2. Nf3 {[%emt 0:00:00]} g6 {[%emt 0:01:18]} 3. Bf4 {[%emt 0:00:07]} Bg7 {[%emt 0:01:33]} 4. e3 {[%emt 0:00:17]} d6 {[%emt 0:02:04]} 5. Be2 {[%emt 0:00:12]} Nbd7 {[%emt 0:01:35]} 6. h3 {[%emt 0:00:17]} b6 {[%emt 0:01:49]} 7. Nbd2 {[%emt 0:01:19]} Bb7 {[%emt 0:02:06]} 8. O-O {[%emt 0:01:49]} O-O {[%emt 0:01:37]} 9. c3 {[%emt 0:00:33]} c5 {[%emt 0:01:06]} 10. Re1 {[%emt 0:01:34]} cxd4 {[%emt 0:00:50]} 11. exd4 {[%emt 0:00:25]} Ne4 {[%emt 0:02:48]} 12. Qc2 {[%emt 0:06:19]} Nxd2 {[%emt 0:01:42]} 13. Qxd2 {[%emt 0:00:13]} Re8 {[%emt 0:01:54]} 14. Rad1 {[%emt 0:01:23]} e5 {[%emt 0:02:35]} 15. dxe5 {[%emt 0:07:38]} d5 {[%emt 0:04:10]} 16. Bb5 {[%emt 0:02:51]} a6 {[%emt 0:02:04]} 17. Ba4 {[%emt 0:00:12]} b5 {[%emt 0:02:21]} 18. Bb3 {[%emt 0:01:42]} Nb6 {[%emt 0:01:10]} 19. Bg5 {[%emt 0:07:21]} Qc7 {[%emt 0:02:47]} 20. Bf6 {[%emt 0:02:43]} Nc4 {[%emt 0:03:19]} 21. Qd4 {[%emt 0:09:59]} Nxb2 {[%emt 0:04:34]} 22. Rb1 {[%emt 0:01:51]} Nc4 {[%emt 0:00:21]} 23. g4 {[%emt 0:04:05]} Bxf6 {[%emt 0:03:24]} 24. exf6 {[%emt 0:00:17]} Re4 {[%emt 0:01:31]} 25. Qd3 {[%emt 0:03:03]} h6 {[%emt 0:02:53]} 26. Re2 {[%emt 0:13:10]} Rae8 {[%emt 0:02:19]} 27. Rbe1 {[%emt 0:00:55]} Qf4 {[%emt 0:01:12]} 28. Rxe4 {[%emt 0:07:44]} Rxe4 {[%emt 0:03:07]} 29. Rxe4 {[%emt 0:00:41]} Qxe4 {[%emt 0:00:26]} 30. Qxe4 {[%emt 0:01:05]} dxe4 {[%emt 0:00:18]} 31. Bxc4 {[%emt 0:00:12]} bxc4 {[%emt 0:00:19]} 32. Nd2 {[%emt 0:00:09]} Bd5 {[%emt 0:00:33]} 33. Kf1 {[%emt 0:00:23]} Kf8 {[%emt 0:00:19]} 34. Ke2 {[%emt 0:00:09]} Ke8 {[%emt 0:00:40]} 35. Ke3 {[%emt 0:00:16]} Kd7 {[%emt 0:00:16]} 36. Nxe4 {[%emt 0:00:53]} Ke6 {[%emt 0:00:29]} 37. f4 {[%emt 0:00:56]} a5 {[%emt 0:01:14]} 38. a3 Bc6 39. Kd4 {[%emt 0:01:55]} Bd5 {[%emt 0:01:14]} 40. f5+ {[%emt 0:00:34]} gxf5 {[%emt 0:01:49]} 41. gxf5+ {[%emt 0:00:11]} Kxf5 {[%emt 0:00:19]} 42. Kxd5 {[%emt 0:00:12]} h5 {[%emt 0:00:25]} 43. Ng3+ {[%emt 0:01:00]} Kg5 {[%emt 0:00:19]} 44. Nxh5 {[%emt 0:01:50]} Kxh5 {[%emt 0:00:10]} 45. Kd6 {[%emt 0:00:05]} Kg6 {[%emt 0:00:22]} 46. Ke7 {[%emt 0:00:13]} Kh6 {[%emt 0:01:36]} 47. Kxf7 1-0

[Event "19th IPCA WCC 2019"]
[Site "Ruzomberok"]
[Date "2019.06.29"]
[Round "2.17"]
[White "Pamarthi Audietya Aazadh"]
[Black "Matana, Zoran"]
[Result "0-1"]
[ECO "B54"]
[WhiteElo "1346"]
[BlackElo "1818"]
[Annotator "NA"]
[PlyCount "142"]
[EventDate "2019.06.28"]
[EventType "swiss"]
[EventCountry "SVK"]
[SourceTitle "playchess.com"]
[Source "ChessBase"]
[SourceQuality "1"]
[TimeControl "5400+30"]

1. e4 {[%emt 0:00:00]} c5 {[%emt 0:00:00]} 2. Nf3 {[%emt 0:00:00]} d6 {[%emt 0:00:08]} 3. d4 {[%emt 0:00:04]} cxd4 {[%emt 0:00:21]} 4. Nxd4 {[%emt 0:00:11]} a6 {[%emt 0:00:49]} 5. Nc3 {[%emt 0:00:24]} b5 {[%emt 0:01:35]} 6. a3 {[%emt 0:01:30]} Bb7 {[%emt 0:00:28]} 7. Be2 {[%emt 0:03:38]} Nd7 {[%emt 0:00:50]} 8. O-O {[%emt 0:02:03]} Ngf6 {[%emt 0:00:46]} 9. Bf3 {[%emt 0:05:11]} Ne5 {[%emt 0:02:53]} 10. Re1 {[%emt 0:01:08]} g6 {[%emt 0:01:06]} 11. Bf4 {[%emt 0:04:24]} Nfd7 {[%emt 0:03:44]} 12. Qd2 {[%emt 0:02:23]} Nc4 {[%emt 0:03:55]} 13. Qc1 {[%emt 0:04:03]} Bg7 {[%emt 0:00:16]} 14. Nb3 {[%emt 0:00:29]} O-O {[%emt 0:02:26]} 15. Nd2 {[%emt 0:01:20]} Qc7 {[%emt 0:01:35]} 16. Nxc4 {[%emt 0:00:28]} Qxc4 {[%emt 0:01:05]} 17. Bh6 {[%emt 0:01:29]} Ne5 {[%emt 0:01:27]} 18. Bxg7 {[%emt 0:01:29]} Nxf3+ {[%emt 0:02:07]} 19. gxf3 {[%emt 0:00:14]} Kxg7 {[%emt 0:00:18]} 20. Qe3 {[%emt 0:04:00]} Rac8 {[%emt 0:07:19]} 21. Rad1 {[%emt 0:02:18]} Rfd8 {[%emt 0:05:26]} 22. Qd4+ {[%emt 0:00:31]} f6 {[%emt 0:02:05]} 23. Rd2 {[%emt 0:04:28]} Qxd4 {[%emt 0:01:13]} 24. Rxd4 {[%emt 0:00:21]} Rc5 {[%emt 0:00:09]} 25. Red1 {[%emt 0:02:41]} Rdc8 {[%emt 0:00:43]} 26. a4 {[%emt 0:05:20]} Bc6 {[%emt 0:05:14]} 27. axb5 {[%emt 0:02:01]} axb5 {[%emt 0:00:08]} 28. Ra1 {[%emt 0:03:11]} Ra8 {[%emt 0:00:30]} 29. Rxa8 {[%emt 0:00:14]} Bxa8 {[%emt 0:00:02]} 30. Rb4 {[%emt 0:02:16]} Bc6 {[%emt 0:00:39]} 31. Kf1 {[%emt 0:00:20]} e5 {[%emt 0:02:52]} 32. Ke2 {[%emt 0:01:20]} Kh6 {[%emt 0:01:29]} 33. Kd3 {[%emt 0:02:53]} f5 {[%emt 0:02:00]} 34. Ne2 {[%emt 0:01:58]} Kg5 {[%emt 0:03:57]} 35. b3 {[%emt 0:00:59]} d5 {[%emt 0:01:27]} 36. f4+ {[%emt 0:04:03]} Kg4 {[%emt 0:07:55]} 37. exf5 {[%emt 0:02:48]} Kxf5 {[%emt 0:01:41]} 38. fxe5 {[%emt 0:01:40]} Kxe5 {[%emt 0:00:12]} 39. f4+ {[%emt 0:00:27]} Kd6 {[%emt 0:00:44]} 40. Nd4 {[%emt 0:01:54]} Bd7 {[%emt 0:00:24]} 41. c3 {[%emt 0:02:04]} h6 {[%emt 0:02:25]} 42. Nf3 {[%emt 0:00:17]} Rc8 {[%emt 0:01:25]} 43. Ne5 {[%emt 0:00:38]} Be8 {[%emt 0:00:42]} 44. Nf3 {[%emt 0:08:30]} Rc7 {[%emt 0:01:47]} 45. Rd4 {[%emt 0:01:10]} Ke6 {[%emt 0:03:37]} 46. Nh4 {[%emt 0:02:09]} Ra7 {[%emt 0:00:47]} 47. Ke3 {[%emt 0:00:39]} Ra3 {[%emt 0:02:03]} 48. Rb4 {[%emt 0:00:30]} Ra2 {[%emt 0:01:00]} 49. Nf3 {[%emt 0:00:15]} Kd6 {[%emt 0:01:09]} 50. Nd4 {[%emt 0:05:54]} Kc5 {[%emt 0:03:04]} 51. Ne6+ {[%emt 0:00:34]} Kb6 {[%emt 0:02:17]} 52. c4 {[%emt 0:02:09]} Ka5 {[%emt 0:00:34]} 53. Rxb5+ {[%emt 0:02:04]} Bxb5 {[%emt 0:00:19]} 54. cxb5 {[%emt 0:00:28]} Kxb5 {[%emt 0:00:49]} 55. Nf8 {[%emt 0:00:07]} Kc5 {[%emt 0:04:03]} 56. Nxg6 {[%emt 0:00:05]} Rxh2 {[%emt 0:01:23]} 57. Ne5 {[%emt 0:01:42]} d4+ {[%emt 0:02:13]} 58. Ke4 {[%emt 0:00:36]} Re2+ {[%emt 0:00:39]} 59. Kf5 {[%emt 0:04:12]} Re3 {[%emt 0:02:00]} 60. Ng4 {[%emt 0:00:14]} Rxb3 {[%emt 0:00:20]} 61. Nxh6 {[%emt 0:02:06]} d3 {[%emt 0:00:13]} 62. Ng4 {[%emt 0:00:04]} d2 {[%emt 0:01:13]} 63. Nf2 {[%emt 0:00:02]} Kd4 {[%emt 0:02:24]} 64. Kg4 {[%emt 0:00:41]} Rb1 {[%emt 0:00:34]} 65. f5 {[%emt 0:00:16]} d1=Q+ {[%emt 0:03:36]} 66. Nxd1 {[%emt 0:00:12]} Rxd1 {[%emt 0:00:12]} 67. Kg5 {[%emt 0:00:15]} Ke5 {[%emt 0:00:27]} 68. Kg6 {[%emt 0:00:22]} Rg1+ {[%emt 0:00:11]} 69. Kf7 {[%emt 0:00:21]} Kxf5 {[%emt 0:00:11]} 70. Ke7 {[%emt 0:00:06]} Rd1 {[%emt 0:00:19]} 71. Ke8 {[%emt 0:00:07]} Kf6 {[%emt 0:00:24]} 0-1

[Event "19th IPCA WCC 2019"]
[Site "Ruzomberok"]
[Date "2019.06.29"]
[Round "2.18"]
[White "Roehrig, Uwe"]
[Black "Sovietova, Kateryna"]
[Result "1-0"]
[ECO "A20"]
[WhiteElo "1802"]
[BlackElo "1279"]
[Annotator "NA"]
[PlyCount "81"]
[EventDate "2019.06.28"]
[EventType "swiss"]
[EventCountry "SVK"]
[SourceTitle "playchess.com"]
[Source "ChessBase"]
[SourceQuality "1"]
[TimeControl "5400+30"]

1. c4 {[%emt 0:00:00]} e5 {[%emt 0:00:30]} 2. g3 {[%emt 0:00:14]} Nf6 {[%emt 0:01:34]} 3. Bg2 {[%emt 0:00:26]} Be7 {[%emt 0:02:02]} 4. Nc3 {[%emt 0:01:22]} O-O {[%emt 0:00:33]} 5. e3 {[%emt 0:00:51]} c6 {[%emt 0:02:13]} 6. Nge2 {[%emt 0:07:22]} d6 {[%emt 0:10:45]} 7. O-O {[%emt 0:02:04]} Be6 {[%emt 0:00:55]} 8. d3 {[%emt 0:03:42]} Nbd7 {[%emt 0:07:32]} 9. f4 {[%emt 0:03:04]} exf4 {[%emt 0:04:08]} 10. exf4 {[%emt 0:02:57]} Nb6 {[%emt 0:03:16]} 11. h3 {[%emt 0:05:50]} d5 {[%emt 0:07:23]} 12. f5 {[%emt 0:02:36]} Bd7 {[%emt 0:02:27]} 13. Qb3 {[%emt 0:06:20]} dxc4 {[%emt 0:03:15]} 14. dxc4 {[%emt 0:01:43]} Re8 {[%emt 0:08:27]} 15. g4 {[%emt 0:06:25]} h6 {[%emt 0:01:41]} 16. Bf4 {[%emt 0:05:40]} Qc8 {[%emt 0:12:40]} 17. a3 {[%emt 0:06:05]} Bd8 {[%emt 0:05:25]} 18. c5 {[%emt 0:04:41]} Nbd5 {[%emt 0:02:08]} 19. Nxd5 {[%emt 0:00:33]} Nxd5 {[%emt 0:02:24]} 20. Qd3 {[%emt 0:03:52]} Nxf4 {[%emt 0:03:51]} 21. Nxf4 {[%emt 0:01:53]} Bf6 {[%emt 0:02:53]} 22. Rad1 {[%emt 0:02:32]} Re7 {[%emt 0:00:54]} 23. Nh5 {[%emt 0:02:49]} Bxb2 {[%emt 0:01:46]} 24. Qd6 {[%emt 0:01:32]} Qe8 {[%emt 0:01:27]} 25. f6 {[%emt 0:02:53]} gxf6 {[%emt 0:05:43]} 26. Rxf6 {[%emt 0:00:49]} Re1+ {[%emt 0:04:03]} 27. Rf1 {[%emt 0:07:03]} Rxf1+ {[%emt 0:01:19]} 28. Rxf1 {[%emt 0:02:51]} Qe3+ {[%emt 0:00:11]} 29. Kh1 {[%emt 0:01:31]} Be6 {[%emt 0:00:40]} 30. Qe7 {[%emt 0:03:16]} Rb8 {[%emt 0:01:14]} 31. Rxf7 {[%emt 0:03:02]} Bxf7 {[%emt 0:00:18]} 32. Qxe3 {[%emt 0:00:13]} Rd8 {[%emt 0:01:04]} 33. Qxh6 {[%emt 0:01:07]} Rd1+ {[%emt 0:00:33]} 34. Kh2 {[%emt 0:00:50]} Be5+ {[%emt 0:00:32]} 35. Ng3 {[%emt 0:00:17]} Rd3 {[%emt 0:00:48]} 36. Qg5+ {[%emt 0:00:17]} Kf8 {[%emt 0:00:15]} 37. Qxe5 {[%emt 0:00:20]} Rxa3 {[%emt 0:00:26]} 38. Nf5 {[%emt 0:00:46]} a5 {[%emt 0:01:01]} 39. Qd6+ {[%emt 0:00:19]} Kg8 {[%emt 0:00:13]} 40. Qh6 {[%emt 0:00:11]} a4 {[%emt 0:00:31]} 41. Qg7# {[%emt 0:00:13]} 1-0

[Event "19th IPCA WCC 2019"]
[Site "Ruzomberok"]
[Date "2019.06.29"]
[Round "2.19"]
[White "Angappan A"]
[Black "Kaydanovich, Marina"]
[Result "1/2-1/2"]
[ECO "C50"]
[WhiteElo "1267"]
[BlackElo "1760"]
[Annotator "NA"]
[PlyCount "117"]
[EventDate "2019.06.28"]
[EventType "swiss"]
[EventCountry "SVK"]
[SourceTitle "playchess.com"]
[Source "ChessBase"]
[SourceQuality "1"]
[TimeControl "5400+30"]

1. e4 {[%emt 0:00:00]} e5 {[%emt 0:00:00]} 2. Nf3 {[%emt 0:00:00]} Nc6 {[%emt 0:00:00]} 3. Bc4 {[%emt 0:00:04]} Bc5 {[%emt 0:00:04]} 4. O-O {[%emt 0:01:04]} Nf6 {[%emt 0:00:25]} 5. c3 {[%emt 0:00:14]} Bb6 {[%emt 0:02:07]} 6. d4 {[%emt 0:00:39]} d6 {[%emt 0:01:47]} 7. dxe5 {[%emt 0:01:34]} dxe5 {[%emt 0:02:55]} 8. Qxd8+ {[%emt 0:00:40]} Nxd8 {[%emt 0:04:47]} 9. Nxe5 {[%emt 0:02:15]} Nxe4 {[%emt 0:04:06]} 10. Nd2 {[%emt 0:00:37]} Nd6 {[%emt 0:02:29]} 11. Bb3 {[%emt 0:00:47]} O-O {[%emt 0:00:39]} 12. Ndc4 {[%emt 0:05:19]} Nxc4 {[%emt 0:07:14]} 13. Bxc4 {[%emt 0:00:39]} Ne6 {[%emt 0:12:46]} 14. Be3 {[%emt 0:02:37]} Bxe3 {[%emt 0:06:29]} 15. fxe3 {[%emt 0:00:11]} f6 {[%emt 0:06:57]} 16. Nd3 {[%emt 0:03:30]} Kh8 {[%emt 0:00:36]} 17. Rad1 {[%emt 0:03:16]} Ng5 {[%emt 0:05:16]} 18. Nf4 {[%emt 0:10:18]} Bg4 {[%emt 0:03:02]} 19. Rd4 {[%emt 0:01:02]} Bc8 {[%emt 0:11:20]} 20. h4 {[%emt 0:01:18]} c5 {[%emt 0:01:00]} 21. Rd5 {[%emt 0:04:35]} Ne4 {[%emt 0:09:50]} 22. Rfd1 {[%emt 0:02:27]} Bg4 {[%emt 0:00:33]} 23. Be2 {[%emt 0:04:39]} Bxe2 {[%emt 0:03:12]} 24. Nxe2 {[%emt 0:00:14]} b6 {[%emt 0:02:53]} 25. Nf4 {[%emt 0:01:06]} Rfe8 {[%emt 0:05:12]} 26. Rd7 {[%emt 0:02:37]} Ng3 {[%emt 0:03:43]} 27. Kh2 {[%emt 0:04:45]} Nf5 {[%emt 0:00:09]} 28. Nd5 {[%emt 0:09:03]} Nxe3 {[%emt 0:02:39]} 29. Nxe3 {[%emt 0:02:49]} Rxe3 {[%emt 0:00:03]} 30. Rd8+ {[%emt 0:00:51]} Re8 {[%emt 0:00:03]} 31. Rxe8+ {[%emt 0:00:14]} Rxe8 {[%emt 0:00:03]} 32. Rd7 {[%emt 0:00:11]} Ra8 {[%emt 0:00:30]} 33. Kg3 {[%emt 0:00:33]} Kg8 {[%emt 0:00:01]} 34. Kf4 {[%emt 0:00:26]} Kf8 {[%emt 0:00:02]} 35. Kf5 {[%emt 0:00:24]} a6 {[%emt 0:03:16]} 36. Rb7 {[%emt 0:00:55]} b5 {[%emt 0:00:03]} 37. Rb6 {[%emt 0:01:17]} c4 {[%emt 0:00:31]} 38. h5 {[%emt 0:01:03]} Ra7 {[%emt 0:00:52]} 39. g3 {[%emt 0:01:30]} Kf7 {[%emt 0:00:37]} 40. g4 {[%emt 0:01:04]} g6+ {[%emt 0:00:49]} 41. Kf4 {[%emt 0:00:55]} Kg7 {[%emt 0:00:32]} 42. hxg6 {[%emt 0:00:31]} hxg6 {[%emt 0:00:08]} 43. g5 {[%emt 0:00:46]} f5 {[%emt 0:00:33]} 44. Rf6 {[%emt 0:02:22]} Re7 {[%emt 0:00:57]} 45. Rxa6 {[%emt 0:00:14]} Re4+ {[%emt 0:00:12]} 46. Kf3 {[%emt 0:00:27]} Rg4 {[%emt 0:00:18]} 47. Rb6 {[%emt 0:01:01]} Rxg5 {[%emt 0:00:08]} 48. Rxb5 {[%emt 0:00:12]} Rg1 {[%emt 0:00:14]} 49. a4 {[%emt 0:00:24]} Kf6 {[%emt 0:00:30]} 50. Rc5 {[%emt 0:00:35]} Rb1 {[%emt 0:00:24]} 51. Rxc4 {[%emt 0:02:34]} Rxb2 {[%emt 0:00:04]} 52. a5 {[%emt 0:00:26]} Ra2 {[%emt 0:00:05]} 53. Rc5 {[%emt 0:00:14]} g5 {[%emt 0:00:13]} 54. Rc6+ {[%emt 0:00:37]} Ke5 {[%emt 0:00:07]} 55. Rc5+ {[%emt 0:00:47]} Ke6 {[%emt 0:00:31]} 56. Rc6+ {[%emt 0:01:39]} Kd7 {[%emt 0:00:28]} 57. Rc5 {[%emt 0:00:18]} Ke6 {[%emt 0:00:03]} 58. Rc6+ {[%emt 0:00:09]} Kd7 {[%emt 0:00:08]} 59. Rc5 {[%emt 0:00:10]} 1/2-1/2

[Event "19th IPCA WCC 2019"]
[Site "Ruzomberok"]
[Date "2019.06.29"]
[Round "2.20"]
[White "Korber, Antonin"]
[Black "Wollner, Bohus"]
[Result "1-0"]
[ECO "D00"]
[WhiteElo "1759"]
[BlackElo "1222"]
[Annotator "NA"]
[PlyCount "21"]
[EventDate "2019.06.28"]
[EventType "swiss"]
[EventCountry "SVK"]
[SourceTitle "playchess.com"]
[Source "ChessBase"]
[SourceQuality "1"]
[TimeControl "5400+30"]

1. d4 {[%emt 0:00:00]} d5 {[%emt 0:00:05]} 2. f4 {[%emt 0:00:00]} f5 {[%emt 0:01:17]} 3. Nf3 {[%emt 0:00:00]} Nc6 {[%emt 0:00:39]} 4. e3 {[%emt 0:00:14]} Nf6 {[%emt 0:02:14]} 5. c3 {[%emt 0:00:42]} e6 {[%emt 0:01:35]} 6. Be2 {[%emt 0:03:13]} h6 {[%emt 0:01:03]} 7. Ne5 {[%emt 0:01:28]} Bd7 {[%emt 0:03:54]} 8. Bh5+ {[%emt 0:01:10]} Ke7 {[%emt 0:03:12]} 9. Ng6+ {[%emt 0:00:57]} Kd6 {[%emt 0:01:47]} 10. Nxh8 {[%emt 0:00:25]} Nxh5 {[%emt 0:00:25]} 11. Nf7+ 1-0

[Event "19th IPCA WCC 2019"]
[Site "Ruzomberok"]
[Date "2019.06.29"]
[Round "2.22"]
[White "Kostova, Erika"]
[Black "Felegyi, Karoly"]
[Result "0-1"]
[ECO "D04"]
[WhiteElo "1210"]
[BlackElo "1674"]
[Annotator "NA"]
[PlyCount "124"]
[EventDate "2019.06.28"]
[EventType "swiss"]
[EventCountry "SVK"]
[SourceTitle "playchess.com"]
[Source "ChessBase"]
[SourceQuality "1"]
[TimeControl "5400+30"]

1. d4 d5 2. e3 Nf6 3. Nf3 Bg4 4. Be2 Bxf3 5. Bxf3 e6 6. Nc3 Bb4 7. Bd2 Nbd7 8. Na4 Bxd2+ 9. Qxd2 b5 10. Nc3 c6 11. O-O O-O 12. a3 Nb6 13. b3 a5 14. Na2 Qd6 15. Nc1 a4 16. Qb4 Qxb4 17. axb4 a3 18. Ra2 Ra7 19. Nd3 Nfd7 20. Rfa1 Rfa8 21. Nc5 h6 22. c3 Nxc5 23. bxc5 Nd7 24. b4 f5 25. g4 g6 26. h3 Kf7 27. Kg2 Kf6 28. Kg3 e5 29. Be2 Nf8 30. f4 exf4+ 31. exf4 Re8 32. Bf3 Rea8 33. Re1 Re7 34. g5+ hxg5 35. fxg5+ Kf7 36. Rxe7+ Kxe7 37. h4 Ne6 38. Bd1 Kf7 39. Kf3 Ng7 40. Kf4 Ne6+ 41. Ke5 Ke7 42. h5 gxh5 43. Kxf5 h4 44. Kg4 h3 45. Kxh3 Nxg5+ 46. Kg4 Ne4 47. Bb3 Nxc3 48. Rc2 a2 49. Rxa2 Nxa2 50. Bxa2 Rxa2 51. Kf4 Kf6 52. Ke3 Kf5 53. Kd3 Ra3+ 54. Kc2 Ke4 55. Kd2 Rh3 56. Ke2 Rh2+ 57. Ke1 Kd3 58. Kf1 Ke3 59. Kg1 Ra2 60. Kf1 Rb2 61. Kg1 Kf3 62. Kh1 Kg3 0-1

[Event "19th IPCA WCC 2019"]
[Site "Ruzomberok"]
[Date "2019.06.30"]
[Round "3.1"]
[White "Yarmonov, Igor"]
[Black "Juvan, Jaka"]
[Result "1-0"]
[ECO "E32"]
[WhiteElo "2389"]
[BlackElo "2168"]
[Annotator "NA"]
[PlyCount "121"]
[EventDate "2019.06.28"]
[EventType "swiss"]
[EventCountry "SVK"]
[SourceTitle "playchess.com"]
[Source "ChessBase"]
[SourceQuality "1"]
[TimeControl "5400+30"]

1. d4 {[%emt 0:00:00]} Nf6 {[%emt 0:00:00]} 2. c4 {[%emt 0:00:00]} e6 {[%emt 0:00:00]} 3. Nc3 {[%emt 0:00:02]} Bb4 {[%emt 0:00:00]} 4. Qc2 {[%emt 0:00:20]} O-O {[%emt 0:00:00]} 5. Nf3 {[%emt 0:02:25]} c5 {[%emt 0:00:42]} 6. dxc5 {[%emt 0:00:22]} Na6 {[%emt 0:00:07]} 7. e3 {[%emt 0:07:01]} Nxc5 {[%emt 0:01:06]} 8. Bd2 {[%emt 0:00:04]} b6 {[%emt 0:01:17]} 9. a3 {[%emt 0:00:27]} Bxc3 {[%emt 0:00:06]} 10. Bxc3 {[%emt 0:00:20]} Bb7 {[%emt 0:03:39]} 11. Be2 {[%emt 0:03:47]} Rc8 {[%emt 0:03:04]} 12. O-O {[%emt 0:00:07]} d5 {[%emt 0:04:42]} 13. Rfd1 {[%emt 0:11:33]} Qe7 {[%emt 0:03:21]} 14. Rac1 {[%emt 0:04:08]} Rfd8 {[%emt 0:02:31]} 15. Bxf6 {[%emt 0:11:05]} Qxf6 {[%emt 0:00:30]} 16. cxd5 {[%emt 0:00:24]} Nd7 {[%emt 0:07:22]} 17. Qb1 {[%emt 0:06:21]} exd5 {[%emt 0:07:36]} 18. Nd4 {[%emt 0:04:05]} Ne5 {[%emt 0:05:13]} 19. Qf5 {[%emt 0:13:44]} Qxf5 {[%emt 0:06:49]} 20. Nxf5 {[%emt 0:00:04]} Kf8 {[%emt 0:01:13]} 21. Rxc8 {[%emt 0:03:02]} Bxc8 {[%emt 0:00:43]} 22. Nd4 {[%emt 0:00:03]} Bb7 {[%emt 0:04:27]} 23. f4 {[%emt 0:00:41]} Nc6 {[%emt 0:02:45]} 24. Nb5 {[%emt 0:02:29]} Ba6 {[%emt 0:14:00]} 25. Rc1 {[%emt 0:01:42]} Nb8 {[%emt 0:02:35]} 26. Kf2 {[%emt 0:03:44]} Rd7 {[%emt 0:03:22]} 27. Nd4 {[%emt 0:01:35]} g6 {[%emt 0:01:34]} 28. b4 {[%emt 0:04:37]} Ke7 {[%emt 0:04:10]} 29. Bg4 {[%emt 0:03:33]} f5 {[%emt 0:00:25]} 30. Be2 {[%emt 0:00:38]} Bxe2 {[%emt 0:06:54]} 31. Kxe2 {[%emt 0:00:04]} Kd8 {[%emt 0:03:25]} 32. Kd3 {[%emt 0:00:53]} Rd6 {[%emt 0:00:45]} 33. h3 {[%emt 0:00:51]} h5 {[%emt 0:00:57]} 34. Rg1 {[%emt 0:01:18]} Nc6 {[%emt 0:01:35]} 35. g4 {[%emt 0:01:00]} hxg4 {[%emt 0:03:41]} 36. hxg4 {[%emt 0:00:07]} Ne7 {[%emt 0:00:32]} 37. gxf5 {[%emt 0:04:09]} gxf5 {[%emt 0:00:03]} 38. Nb5 {[%emt 0:03:21]} Rd7 {[%emt 0:00:19]} 39. Rg5 {[%emt 0:00:53]} a5 {[%emt 0:02:32]} 40. bxa5 {[%emt 0:01:58]} bxa5 {[%emt 0:00:01]} 41. Kd4 {[%emt 0:01:19]} Rb7 {[%emt 0:02:43]} 42. Kc5 {[%emt 0:01:16]} Kd7 {[%emt 0:00:09]} 43. Rh5 {[%emt 0:02:07]} Rb8 {[%emt 0:01:09]} 44. a4 {[%emt 0:00:43]} Re8 {[%emt 0:01:22]} 45. Rh7 {[%emt 0:00:38]} Rb8 {[%emt 0:00:04]} 46. Nd4 {[%emt 0:00:30]} Rc8+ {[%emt 0:01:16]} 47. Kb5 {[%emt 0:00:38]} Kd6 {[%emt 0:00:09]} 48. Kxa5 {[%emt 0:00:29]} Kc5 {[%emt 0:00:29]} 49. Nb3+ {[%emt 0:00:53]} Kc4 {[%emt 0:00:17]} 50. Rxe7 {[%emt 0:01:01]} Kxb3 {[%emt 0:00:01]} 51. Kb5 {[%emt 0:00:32]} Rb8+ {[%emt 0:02:05]} 52. Kc5 {[%emt 0:00:04]} Kxa4 {[%emt 0:00:04]} 53. Kxd5 {[%emt 0:00:35]} Kb4 {[%emt 0:01:25]} 54. Ke6 {[%emt 0:01:04]} Rf8 {[%emt 0:00:10]} 55. Rf7 {[%emt 0:00:34]} Re8+ {[%emt 0:00:01]} 56. Kxf5 {[%emt 0:00:28]} Rxe3 {[%emt 0:00:01]} 57. Rc7 {[%emt 0:00:10]} Kb5 {[%emt 0:00:47]} 58. Kf6 {[%emt 0:00:11]} Rg3 {[%emt 0:01:54]} 59. f5 {[%emt 0:00:27]} Rh3 {[%emt 0:00:06]} 60. Rc1 {[%emt 0:00:26]} Rf3 {[%emt 0:01:00]} 61. Kg6 {[%emt 0:00:37]} 1-0

[Event "19th IPCA WCC 2019"]
[Site "Ruzomberok"]
[Date "2019.06.30"]
[Round "3.2"]
[White "Gurbanov, Andrei"]
[Black "Gedgafov, Chamal"]
[Result "1-0"]
[ECO "A48"]
[WhiteElo "2300"]
[BlackElo "2163"]
[Annotator "NA"]
[PlyCount "65"]
[EventDate "2019.06.28"]
[EventType "swiss"]
[EventCountry "SVK"]
[SourceTitle "playchess.com"]
[Source "ChessBase"]
[SourceQuality "1"]
[TimeControl "5400+30"]

1. d4 {[%emt 0:00:00]} Nf6 {[%emt 0:00:00]} 2. Nf3 {[%emt 0:00:00]} g6 {[%emt 0:00:00]} 3. Bf4 {[%emt 0:00:34]} Bg7 {[%emt 0:00:09]} 4. e3 {[%emt 0:00:07]} d6 {[%emt 0:00:33]} 5. h3 {[%emt 0:00:07]} O-O {[%emt 0:00:13]} 6. Bd3 {[%emt 0:00:44]} b6 {[%emt 0:00:36]} 7. Nbd2 {[%emt 0:00:34]} Nd5 {[%emt 0:07:23]} 8. Bh2 {[%emt 0:00:44]} Nb4 {[%emt 0:00:44]} 9. Be2 {[%emt 0:01:46]} Bf5 {[%emt 0:00:34]} 10. e4 {[%emt 0:00:10]} Bc8 {[%emt 0:00:15]} 11. c3 {[%emt 0:00:20]} N4a6 {[%emt 0:00:59]} 12. O-O {[%emt 0:00:20]} Bb7 {[%emt 0:00:40]} 13. Re1 {[%emt 0:00:30]} c5 {[%emt 0:03:24]} 14. d5 {[%emt 0:03:31]} Nc7 {[%emt 0:00:15]} 15. a4 {[%emt 0:00:35]} Nd7 {[%emt 0:02:08]} 16. Nc4 {[%emt 0:03:25]} f5 {[%emt 0:05:26]} 17. exf5 {[%emt 0:04:59]} gxf5 {[%emt 0:00:33]} 18. Ng5 {[%emt 0:00:30]} Kh8 {[%emt 0:03:51]} 19. Bf3 {[%emt 0:04:48]} Rf6 {[%emt 0:03:15]} 20. Ne6 {[%emt 0:06:41]} Nxe6 {[%emt 0:02:27]} 21. dxe6 {[%emt 0:00:20]} Bxf3 {[%emt 0:00:52]} 22. Qxf3 {[%emt 0:00:08]} Nf8 {[%emt 0:00:40]} 23. Nxd6 {[%emt 0:00:19]} Nxe6 {[%emt 0:03:09]} 24. Rxe6 {[%emt 0:04:15]} exd6 {[%emt 0:00:17]} 25. Rxf6 {[%emt 0:00:15]} Bxf6 {[%emt 0:00:50]} 26. Bxd6 {[%emt 0:00:25]} Rc8 {[%emt 0:03:42]} 27. Qxf5 {[%emt 0:01:51]} Rc6 {[%emt 0:00:12]} 28. Bg3 {[%emt 0:01:09]} Qe7 {[%emt 0:01:18]} 29. Rd1 {[%emt 0:00:31]} Re6 {[%emt 0:00:16]} 30. Kh2 {[%emt 0:00:33]} Kg8 {[%emt 0:02:33]} 31. Rd8+ {[%emt 0:01:06]} Kg7 {[%emt 0:02:25]} 32. Qg4+ {[%emt 0:00:12]} Bg5 {[%emt 0:00:40]} 33. Rd5 {[%emt 0:00:06]} 1-0